Cogmind - Beta 16 @@@ ROGUE MODE // 2025.12.27 @ 11:53:34 Player: kiul Result: Destroyed by G-50 Soldier with Heavy Laser Performance ------------- Evolutions (5) 2500 Regions Visited (10) 2000 Robots Destroyed (119) 595 Value Destroyed (6214) 6214 Prototype IDs (3) 60 Alien Tech Used (0) 0 Bonus (4060) 4060 TOTAL SCORE: 15429 Bonus ------- High Alert Combat Kills 1574 Follower Combat Kills 632 Entered Garrisons 400 Used RIF Installer 1000 Entered DSFs 500 Friendly Fire -46 Cogmind --------- Core Integrity 0/1000 Matter 284/300 Energy 74/100 System Corruption 43% Temperature Cool (9) Movement Core (1350) Ox26 Location -5/Factory Parts ------- > --- POWER (2) -------- (None) > --- PROPULSION (3) --- (None) > --- UTILITY (9) ------ Huge Storage Unit Relay Coupler [Grunt] (31) > --- WEAPON (3) ------- (None) > --- INVENTORY (25) --- Light Nuclear Core Faulty Cooled Gravmag System Relay Coupler [Sentry] (19) Remote Datajack Advanced Remote Datajack Peak State ------------ > --- POWER ------------ Improved Deuterium Engine Micro Fission Core > --- PROPULSION ------- Improved Medium Treads Improved Medium Treads Armored Medium Treads > --- UTILITY ---------- Improved Heat Sink Advanced Cooling System Huge Storage Unit Hardened Heavy Armor Plating Improved Focal Shield Hardlight Generator Hacking Suite Hacking Suite > --- WEAPON ----------- Heavy Phase Cannon Heavy Machine Gun Magnetic Acceleration Cannon > --- INVENTORY -------- Improved Deuterium Engine Micro Fission Core Improved Medium Treads Improved Medium Treads Cooling System Cooling System High-capacity Matter Pod Hardened Heavy Armor Plating Hardlight Generator Relay Coupler [NC] Relay Coupler [NC] Relay Coupler [Grunt] Advanced Assault Cannon Advanced Assault Cannon Mini Assault Cannon Remote Datajack Katana [Rating: 81] Favorites ----------- Power Improved Deuterium Engine Engine Improved Deuterium Engine Power Core Micro Fission Core Propulsion Armored Wheel Treads Improved Medium Treads Leg Flexi-carbon Leg Wheel Armored Wheel Hover Unit Improved Antigrav System Utility Huge Storage Unit Device Improved Heat Sink Storage Huge Storage Unit Processor Improved Target Analyzer Hackware Hacking Suite Protection Light Armor Plating Weapon Heavy Assault Cannon Energy Gun Small Laser Energy Cannon Improved EM Pulse Cannon Ballistic Gun High-powered Shotgun Ballistic Cannon Heavy Assault Cannon Launcher Rocket Launcher Special Weapon Remote Datajack Impact Weapon Heavy Mace Slashing Weapon Katana Piercing Weapon Lance Build | -11 -10 -9 -9 -9 -9 -7 -7 -6 -6 -5 ------- Run | Yrd Mat Mat Sto Gar Rec Fac Gar Fac DSF Fac Slots Evolved 10 | . . 2 . . . 4 . 2 . 2 Power 1 | . . . . . . . . . . 1 Propulsion 1 | . . . . . . 1 . . . . Utility 7 | . . 1 . . . 3 . 2 . 1 Weapon 1 | . . 1 . . . . . . . . Parts Attached 107 | 6 5 7 1 14 . 5 3 . 3 63 Power 12 | 1 . 1 . 2 . . . . . 8 Engine 6 | 1 . . . 1 . . . . . 4 Core 6 | . . 1 . 1 . . . . . 4 Reactor . | . . . . . . . . . . . Propulsion 23 | 2 . 2 . 2 . 1 . . . 16 Treads 7 | . . . . . . . . . . 7 Leg 4 | . . . . . . . . . . 4 Wheel 7 | 2 . 2 . 2 . 1 . . . . Hover 5 | . . . . . . . . . . 5 Flight . | . . . . . . . . . . . Utility 37 | 1 4 . 1 4 . 2 3 . 2 20 Device 14 | . . . . 1 . 1 2 . 1 9 Storage 5 | 1 3 . . . . . . . . 1 Processor 2 | . . . . . . . . . . 2 Hackware 6 | . . . . . . 1 . . . 5 Protection 10 | . 1 . 1 3 . . 1 . 1 3 Artifact . | . . . . . . . . . . . Weapon 35 | 2 1 4 . 6 . 2 . . 1 19 Energy Gun 4 | . . 1 . 1 . . . . . 2 Energy Cannon 4 | . . . . . . 1 . . . 3 Ballistic Gun 11 | 2 . 1 . 2 . . . . 1 5 Ballistic Cannon 8 | . . 2 . 1 . 1 . . . 4 Launcher 3 | . 1 . . 2 . . . . . . Special Weapon 2 | . . . . . . . . . . 2 Impact Weapon 1 | . . . . . . . . . . 1 Slashing Weapon 1 | . . . . . . . . . . 1 Piercing Weapon 1 | . . . . . . . . . . 1 Special Melee Weapon . | . . . . . . . . . . . Unidentified Prototypes 3 | . . 1 . . . 1 . . . 1 Parts Lost 72 | . . 1 . 9 . 1 . . 1 60 Power 8 | . . . . 1 . . . . . 7 Propulsion 18 | . . . . 2 . . . . . 16 Utility 24 | . . . . 3 . . . . . 21 Weapon 22 | . . 1 . 3 . 1 . . 1 16 Highest Loss Streak 15 | . . 1 . 5 . 1 . . 1 15 To Critical Strikes 3 | . . . . . . . . . 1 2 Average Backups 14 | 1 9 12 15 11 15 16 19 23 22 15 Power 1 | . 1 1 2 1 2 2 3 3 2 1 Propulsion 3 | . 2 3 4 3 3 3 3 4 4 2 Utility 4 | . 1 3 3 2 5 5 7 10 11 5 Weapon 4 | . 4 4 6 4 5 5 6 6 4 4 Tool/Special . | . . . . . . . . . . . Unused Backups 16 | . . 7 . 1 . . . . 6 2 Power 4 | . . 1 . 1 . . . . 1 1 Propulsion 6 | . . 3 . . . . . . 3 . Utility 4 | . . 1 . . . . . . 2 1 Weapon 2 | . . 2 . . . . . . . . Tool/Special . | . . . . . . . . . . . Average Slot Usage (%) 85 | . 97 82 77 85 88 78 88 80 85 80 Engine 7 | . 14 5 . 7 11 7 7 6 6 4 Core 2 | . . 5 11 3 . . . . . 3 Treads 1 | . . . . . . . . . . 5 Wheel 16 | . 28 22 22 18 22 23 23 20 20 5 Device 10 | . . . . 7 11 14 15 13 16 12 Storage 9 | . 14 11 11 11 11 7 7 6 6 6 Hackware 4 | . . . . . . 2 7 6 6 12 Protection 9 | . 11 11 11 11 11 7 11 13 14 3 Energy Gun 1 | . . 3 . 3 . . . . . . Energy Cannon 2 | . . . . . . 2 7 6 6 3 Ballistic Gun 7 | . 14 5 . 13 11 4 . . 1 1 Ballistic Cannon 6 | . . 7 11 7 11 7 7 6 5 4 Launcher 1 | . 13 11 11 . . . . . . . Peak Build Rating 81 | 6 9 20 21 26 26 36 43 43 59 81 Average Rating 34 | 4 8 15 20 22 26 33 39 43 53 57 On Entrance 26 | . 6 9 20 21 26 26 36 43 43 59 Avg Prop Armor Cover (%) 8 | . . . . . . . . . . 8 Naked Turns . | . . . . . . . . . . . Heaviest Build 152 | 12 93 104 107 109 109 118 122 122 142 152 Greatest Support 90 | 20 20 24 24 24 24 36 36 36 36 90 Greatest Overweight (x) 32 | . 4 4 4 9 4 3 3 3 3 32 Average Overweight (x) 3 | . 1 4 4 4 4 3 3 3 3 3 Largest Inventory Capacity 25 | 8 25 25 25 25 25 25 25 25 25 25 Average Capacity 24 | 7 15 25 25 25 25 25 25 25 25 25 Most Carried 25 | 4 12 17 16 15 17 17 23 23 25 24 Average Carried 14 | 1 9 13 15 12 15 16 19 23 24 15 Final Capacity 25 | 8 25 25 25 25 25 25 25 25 25 25 Final Carried 25 | 4 11 16 15 14 17 17 23 23 25 5 Class Distribution -------------------- 31% | Commander-Tank 31% | Tank 15% | Bomber 8% | Mutant 4% | Scavenger-Mutant Dominant Class ---------------- Mutant | -10/Materials Tank | -9/Materials Bomber | -9/Storage Tank | -9/Garrison Commander-Tank | -9/Recycling Commander-Tank | -7/Factory Commander-Tank | -7/Garrison Commander-Tank | -6/Factory Tank | -6/DSF Tank | -5/Factory Resources | -11 -10 -9 -9 -9 -9 -7 -7 -6 -6 -5 ----------- Run | Yrd Mat Mat Sto Gar Rec Fac Gar Fac DSF Fac Matter Collected 3924 | 199 . 225 . 821 297 68 94 . 307 1913 Remotely . | . . . . . . . . . . . Salvage Created 3694 | . 42 412 . 516 139 43 79 . 276 2187 Parts 210 | . 4 36 . 46 5 4 5 . 11 99 Haulers Intercepted 5 | . . 2 . . . . . . 1 2 Recyclers Shooed 2 | . . . . . . . . . . 2 Parts Field Recycled . | . . . . . . . . . . . Retrieved Matter . | . . . . . . . . . . . Parts Self-Destructed . | . . . . . . . . . . . Prevented . | . . . . . . . . . . . Parts Restored . | . . . . . . . . . . . Kills | -11 -10 -9 -9 -9 -9 -7 -7 -6 -6 -5 ------- Run | Yrd Mat Mat Sto Gar Rec Fac Gar Fac DSF Fac Combat Hostiles Destroyed 93 | . 2 11 . 27 3 1 . . 4 45 Melee 4 | . . . . 1 . . . . . 3 Guns 20 | . . 1 . 12 1 . . . . 6 Cannons 39 | . . 5 . 4 2 1 . . 4 23 AOE 30 | . 2 5 . 10 . . . . . 13 Classes Destroyed 17 | . 1 6 . 3 . . . . 1 6 Worker 7 | . . . . . . . . . . 7 Builder 5 | . . 4 . . . . . . . 1 Tunneler 2 | . . . . . . . . . . 2 Hauler 5 | . . 2 . . . . . . 1 2 Recycler 2 | . . 2 . . . . . . . . Operator 3 | . . 1 . . . 1 . . . 1 Watcher 2 | . . . . . . . . . . 2 Swarmer 28 | . . 6 . 15 . . . . . 7 Saboteur 3 | . . . . . . . . . . 3 Grunt 32 | . 2 4 . 8 . . . . 1 17 Brawler 2 | . . . . . . . . . . 2 Duelist 2 | . . . . 1 . . . . . 1 Sentry 8 | . . 1 . 1 3 1 . . 1 1 Specialist 2 | . . . . 1 . . . . 1 . Hunter 8 | . . . . . . . . . . 8 Programmer 7 | . . . . 1 . . . . . 6 Heavy 1 | . . . . . . . . . 1 . Best Kill Streak 17 | . 2 12 . 17 1 2 . . 2 15 Combat Bots Only 17 | . 2 4 . 17 1 1 . . 2 7 Max Kills in Single Turn 5 | . 1 5 . 3 1 1 . . 1 5 Gunslinging . | . . . . . . . . . . . Exploded 3 | . 1 2 . 3 . . . . . 2 Melee 1 | . . . . 1 . . . . . 1 Uniques/NPCs Destroyed . | . . . . . . . . . . . Combat | -11 -10 -9 -9 -9 -9 -7 -7 -6 -6 -5 -------- Run | Yrd Mat Mat Sto Gar Rec Fac Gar Fac DSF Fac Hostile Shots Fired 983 | . 5 37 . 155 6 27 . . 7 746 Missed 303 | . 2 13 . 49 . 18 . . 2 219 Hits 680 | . 3 24 . 106 6 9 . . 5 527 Melee 15 | . . . . . . . . . . 15 Projectile 665 | . 3 24 . 106 6 9 . . 5 512 Critical Strikes 37 | . . 1 . 1 . . . . 2 33 Part Disruptions 1 | . . . . . . . . . . 1 Damage Taken 11322 | . 33 396 . 1274 75 40 145 . 141 9218 Core 1299 | . . 36 . 182 . 6 60 . 9 1006 Absorbed by Shields 923 | . . . . 23 20 36 8 . 44 792 Ignored by Resistances 672 | . . . . . . . . . 11 661 Core Remaining (%) 86 | 100 100 . . . 45 . 90 . 98 . Volleys Fired 249 | . 3 17 . 65 6 7 10 . 13 128 Largest 3 | . 2 3 . 3 2 2 1 . 3 3 Hottest 239 | . 53 93 . 88 75 119 50 . 132 239 Shots Fired 513 | . 6 39 . 107 12 13 10 . 25 301 Gun 175 | . 3 13 . 74 6 3 . . 4 72 Cannon 286 | . . 13 . 25 6 10 10 . 21 201 Launcher 47 | . 3 13 . 8 . . . . . 23 Special 5 | . . . . . . . . . . 5 Kinetic 342 | . 3 22 . 83 12 10 10 . 16 186 Thermal 91 | . . . . 16 . . . . . 75 Explosive 47 | . 3 13 . 8 . . . . . 23 Electromagnetic 28 | . . 4 . . . 3 . . 9 12 Robot Hit Streak 18 | . 1 11 . 13 4 5 10 . 11 18 Robot Miss Streak 8 | . 2 6 . 4 2 4 . . 2 8 Penetration Max 1 | . . . . . . . . . . 1 Secondary Targets 1 | . . . . 1 . . . . . . Max Gunslinging Chain 1 | . . . . 1 . . . . . . Shots Hit Robots 321 | . 2 21 . 54 8 9 5 . 18 204 Core Hits 223 | . 3 26 . 37 4 4 3 . 9 137 Critical Kills 8 | . . . . 1 . . . . . 7 Critical Parts Destroyed 9 | . . 1 . . . . . . . 8 Critical Strikes 30 | . . 2 . 1 . . 1 . 3 23 Destroy 16 | . . 1 . 1 . . . . . 14 Blast 9 | . . 1 . . . . 1 . 3 4 Smash 1 | . . . . . . . . . . 1 Sever 3 | . . . . . . . . . . 3 Impale 1 | . . . . . . . . . . 1 Melee Attacks 54 | . . . . . . . . . . 54 Impact 9 | . . . . . . . . . . 9 Slashing 36 | . . . . . . . . . . 36 Piercing 9 | . . . . . . . . . . 9 Sneak Attacks . | . . . . . . . . . . . Combat Hostiles . | . . . . . . . . . . . Follow-up Attacks 2 | . . . . . . . . . . 2 Damage Inflicted 12124 | . 133 1373 . 1875 249 330 248 . 713 7203 Guns 1758 | . . 84 . 657 100 42 . . 46 829 Cannons 5650 | . . 285 . 500 149 288 248 . 667 3513 Explosions 3745 | . 133 1004 . 659 . . . . . 1949 Melee 899 | . . . . . . . . . . 899 Ramming 72 | . . . . 59 . . . . . 13 Kinetic 5339 | . . 334 . 1028 249 254 248 . 529 2697 Thermal 1841 | . . . . 129 . . . . . 1712 Explosive 3192 | . 133 1004 . 659 . . . . . 1396 Electromagnetic 781 | . . 35 . . . 76 . . 184 486 Impact 234 | . . . . . . . . . . 234 Slashing 461 | . . . . . . . . . . 461 Piercing 204 | . . . . . . . . . . 204 Highest Corruption 43 | . . . . 2 2 . 1 . . 43 Average Corruption 4 | . . . . 2 2 . 1 . . 13 Corruption Purged . | . . . . . . . . . . . Corruption Blocked . | . . . . . . . . . . . Effects 97 | . . . . 34 7 . 3 . . 53 Message Errors 25 | . . . . 8 2 . . . . 15 Matter Fused 28 | . . . . 12 2 . . . . 14 Heat Flow Errors 10 | . . . . 2 1 . . . . 7 Energy Discharges 10 | . . . . 5 . . . . . 5 Parts Rejected 2 | . . . . . . . . . . 2 Data Loss (minor) 8 | . . . . 2 2 . 3 . . 1 Data Loss (major) 4 | . . . . 1 . . . . . 3 Misfires 5 | . . . . 3 . . . . . 2 Alerts 1 | . . . . 1 . . . . . . Misdirections 1 | . . . . . . . . . . 1 Weapon Failures 3 | . . . . . . . . . . 3 Overload Shots . | . . . . . . . . . . . Overflow Damage 372 | . . 71 . 22 . 38 12 . 4 225 Projectiles 182 | . . 38 . 9 . 38 12 . 4 81 Explosions 78 | . . 33 . 13 . . . . . 32 Melee 112 | . . . . . . . . . . 112 Knockbacks 27 | . . 1 . 5 . . 2 . 1 18 Impact 1 | . . . . . . . . . . 1 Kinetic 25 | . . 1 . 5 . . 2 . 1 16 Secondary 1 | . . . . . . . . . . 1 Self-Inflicted Damage 860 | . . 118 . 102 . . 120 . . 520 Shots 17 | . . 4 . 2 . . 1 . . 10 Rammed 5 | . . . . 5 . . . . . . Targets Rammed 8 | . . . . 5 . . . . . 3 Kicked 3 | . . . . . . . . . . 3 Crushed . | . . . . . . . . . . . Highest Temperature 520 | . 49 141 . 101 118 6 . . 1 520 Average Temperature 84 | . 29 50 . 38 70 3 . . 1 113 Received Heat Transfer 1501 | . 18 105 . 228 21 17 . . 14 1098 Effects 6 | . . . . . . . . . . 6 Shutdowns 3 | . . . . . . . . . . 3 Energy Bleed 1 | . . . . . . . . . . 1 Short Circuit 2 | . . . . . . . . . . 2 Siege Activations . | . . . . . . . . . . . Martial Activations . | . . . . . . . . . . . Shielding Activations . | . . . . . . . . . . . Robots Disrupted 1 | . . . . . . . . . . 1 Combat Hostiles . | . . . . . . . . . . . Robots Corrupted . | . . . . . . . . . . . Combat Hostiles . | . . . . . . . . . . . Parts Fried 1 | . . . . . . . . . . 1 Impact Corruptions 2 | . . . . . . . . . . 2 Robots Melted . | . . . . . . . . . . . Combat Hostiles . | . . . . . . . . . . . Parts Melted 2 | . . . . 2 . . . . . . Heat Transferred 2641 | . . . . 300 . . . . . 2341 Parts Sabotaged 3 | . . . . . . . . . . 3 Parts Stolen . | . . . . . . . . . . . Parts Stripped . | . . . . . . . . . . . Power Chain Reactions 1 | . . . . . . . . . . 1 Alert | -11 -10 -9 -9 -9 -9 -7 -7 -6 -6 -5 ------- Run | Yrd Mat Mat Sto Gar Rec Fac Gar Fac DSF Fac Maximum Alert Level 5 | . . 1 . 5 3 2 4 2 3 4 Low Security (%) 8 | 100 100 56 100 5 . . . . . . Level 1 10 | . . 43 . 1 . 91 18 . . 11 Level 2 24 | . . . . 32 31 8 30 100 75 10 Level 3 23 | . . . . 14 68 . 44 . 25 16 Level 4 26 | . . . . 25 . . 7 . . 61 Level 5 7 | . . . . 20 . . . . . . High Security . | . . . . . . . . . . . Max Security . | . . . . . . . . . . . Sterilizations 1 | . . . . . . . . . 1 . Peak Influence 2010 | . 61 337 117 2010 927 417 1157 606 712 1308 Initial 904 | . . 4 117 69 904 277 284 606 427 373 Average 831 | . 16 172 116 1033 766 329 699 606 574 982 Influence Increases 6377 | . 61 462 . 2111 105 210 873 4 405 2146 Destroy 0b10 Robot/C 2340 | . 40 220 . 740 80 80 . . 280 900 Destroy 0b10 Robot/NC 140 | . . 45 . . . 5 10 . 5 75 Destroy Leader 332 | . 10 54 . 30 . 30 . . 40 168 Allied During Kill 211 | . . . . 70 22 34 5 . 80 . Successful Hack 22 | . . . . . . . 12 4 . 6 Disable Machine 450 | . . . . . . 30 . . . 420 Anti-Garrison Action 2000 | . . . . 1200 . . 800 . . . Destroy Structure 552 | . 11 98 . 71 3 31 46 . . 292 Lose Combat Pursuer 330 | . . 45 . . . . . . . 285 Influence Decreases 5106 | . 50 195 171 208 1452 466 123 551 303 1587 Entered New Map 2894 | . . 7 161 38 1106 386 123 551 183 339 Time Decay 1262 | . 50 178 10 . 326 70 . . . 628 Lost Part 720 | . . 10 . 90 . 10 . . 10 600 Lost Ally 230 | . . . . 80 20 . . . 110 20 Squads Dispatched 22 | . 2 1 . . . 2 . . 2 15 Investigation 3 | . 2 . . . . . . . . 1 Extermination 3 | . . . . . . . . . . 3 Reinforcement 9 | . . 1 . . . 1 . . 2 5 Assault 6 | . . . . . . . . . . 6 Garrison 1 | . . . . . . 1 . . . . Intercept . | . . . . . . . . . . . Searches Triggered . | . . . . . . . . . . . Construction Impeded 3 | . . 1 . . . . . . . 2 Haulers Reinforced . | . . . . . . . . . . . Active Scanning Responses . | . . . . . . . . . . . Cargo Convoy Interrupts . | . . . . . . . . . . . Stealth | -11 -10 -9 -9 -9 -9 -7 -7 -6 -6 -5 --------- Run | Yrd Mat Mat Sto Gar Rec Fac Gar Fac DSF Fac Distress Signals 3 | . . . . . . . . . . 3 Communications Jammed . | . . . . . . . . . . . Distress Signals . | . . . . . . . . . . . Times Spotted 162 | . 3 18 . 33 2 3 . . 9 94 Peak Tracking Total 18 | . 3 6 . 7 2 1 . . 4 18 Tactical Retreats 17 | . . 3 . . . . . . . 14 Traps | -11 -10 -9 -9 -9 -9 -7 -7 -6 -6 -5 ------- Run | Yrd Mat Mat Sto Gar Rec Fac Gar Fac DSF Fac Traps Triggered 20 | . 2 . . 9 . . 3 . 3 3 Indirectly 1 | . . . . . . . . . . 1 Trap Hack Attempts . | . . . . . . . . . . . Triggered . | . . . . . . . . . . . Disarmed . | . . . . . . . . . . . Reprogrammed . | . . . . . . . . . . . Reused . | . . . . . . . . . . . Traps Extracted . | . . . . . . . . . . . Installed . | . . . . . . . . . . . Triggered . | . . . . . . . . . . . Machines | -11 -10 -9 -9 -9 -9 -7 -7 -6 -6 -5 ---------- Run | Yrd Mat Mat Sto Gar Rec Fac Gar Fac DSF Fac Machines Disabled 41 | . . . . 5 . 2 5 . 1 28 Max in Single Turn 7 | . . . . 1 . . 1 . . 7 Garrison Relay 9 | . . . . 5 . . 4 . . . Phase Generator 1 | . . . . . . . 1 . . . Machines Repaired . | . . . . . . . . . . . Machines Dismantled . | . . . . . . . . . . . Machines Sabotaged . | . . . . . . . . . . . Overloaded Fab Kills . | . . . . . . . . . . . Hacking | -11 -10 -9 -9 -9 -9 -7 -7 -6 -6 -5 --------- Run | Yrd Mat Mat Sto Gar Rec Fac Gar Fac DSF Fac Machines Accessed 13 | . . . 1 1 . 1 4 1 . 5 Terminals 9 | . . . . 1 . . 4 1 . 3 Fabricators 1 | . . . . . . . . . . 1 Repair Stations . | . . . . . . . . . . . Recycling Units . | . . . . . . . . . . . Scanalyzers 1 | . . . . . . . . . . 1 Garrison Access 2 | . . . 1 . . 1 . . . . Total Hacks 24 | . . . 2 4 . 1 8 1 . 8 Successful 12 | . . . 1 . . 1 3 1 . 6 Failed 12 | . . . 1 4 . . 5 . . 2 Catastrophic 2 | . . . . . . . 1 . . 1 Database Lockouts . | . . . . . . . . . . . Manual 2 | . . . . . . . . . . 2 Terminals 17 | . . . . 4 . . 8 1 . 4 Fabricators 2 | . . . . . . . . . . 2 Repair Stations . | . . . . . . . . . . . Recycling Units . | . . . . . . . . . . . Scanalyzers 2 | . . . . . . . . . . 2 Garrison Access 3 | . . . 2 . . 1 . . . . Terminal Hacks 6 | . . . . . . . 3 1 . 2 Record 1 | . . . . . . . . . . 1 Open Door 1 | . . . . . . . 1 . . . Open DSF 1 | . . . . . . . . 1 . . Emergency Access Points 1 | . . . . . . . 1 . . . Registered Components 1 | . . . . . . . . . . 1 Garrison Registry 1 | . . . . . . . 1 . . . Fabricator Hacks 2 | . . . . . . . . . . 2 Load Schematic 1 | . . . . . . . . . . 1 Build 1 | . . . . . . . . . . 1 Repair Station Hacks . | . . . . . . . . . . . Recycling Unit Hacks . | . . . . . . . . . . . Scanalyzer 2 | . . . . . . . . . . 2 Insert Component 1 | . . . . . . . . . . 1 Analyze 1 | . . . . . . . . . . 1 Garrison Access Hacks 2 | . . . 1 . . 1 . . . . Unlock Access 2 | . . . 1 . . 1 . . . . Unauthorized Hacks . | . . . . . . . . . . . Terminals . | . . . . . . . . . . . Fabricators . | . . . . . . . . . . . Repair Stations . | . . . . . . . . . . . Recycling Units . | . . . . . . . . . . . Scanalyzers . | . . . . . . . . . . . Garrison Access . | . . . . . . . . . . . Data Cores Recovered . | . . . . . . . . . . . Used . | . . . . . . . . . . . Hacking Detections 7 | . . . . 1 . . 3 . . 3 Full Trace Events 2 | . . . . 1 . . 1 . . . Feedback Events . | . . . . . . . . . . . Feedback Blocked . | . . . . . . . . . . . Robot Schematics Acquired . | . . . . . . . . . . . Robots Built . | . . . . . . . . . . . Authchips . | . . . . . . . . . . . Time . | . . . . . . . . . . . Total Robot Build Rating . | . . . . . . . . . . . Part Schematics Acquired 1 | . . . . . . . . . . 1 Parts Built 2 | . . . . . . . . . . 2 Authchips 1 | . . . . . . . . . . 1 Time 106 | . . . . . . . . . . 106 Total Part Build Rating 12 | . . . . . . . . . . 12 Part Studies Acquired . | . . . . . . . . . . . Parts Repaired . | . . . . . . . . . . . Time . | . . . . . . . . . . . Parts Recycled . | . . . . . . . . . . . Recycled Matter . | . . . . . . . . . . . Retrieved Matter . | . . . . . . . . . . . Retrieved Components . | . . . . . . . . . . . Parts Scanalyzed 1 | . . . . . . . . . . 1 Part Schematics Acquired 1 | . . . . . . . . . . 1 Parts Damaged . | . . . . . . . . . . . Bothacking | -11 -10 -9 -9 -9 -9 -7 -7 -6 -6 -5 ------------ Run | Yrd Mat Mat Sto Gar Rec Fac Gar Fac DSF Fac Used RIF Installer 2 | . . . . 1 . . 1 . . . Alert ID Control 1 | . . . . . . . 1 . . . Robots Hacked 3 | . . . . . . . . . . 3 Non-combat 2 | . . . . . . . . . . 2 Combat 1 | . . . . . . . . . . 1 Robot Hacks Applied 3 | . . . . . . . . . . 3 drop_inventory 1 | . . . . . . . . . . 1 find_recycling 1 | . . . . . . . . . . 1 wipe_record 1 | . . . . . . . . . . 1 Relay Couplers Released 42 | . . . . 23 . . 16 . . 3 Machine Destruction 36 | . . . . 20 . . 16 . . . Programmers 6 | . . . . 3 . . . . . 3 Attached 3 | . . . . . . . . . . 3 Fabnet Peak Effective % . | . . . . . . . . . . . Robots Rewired 16 | . . . . 8 5 . 3 . . . Allies Hacked . | . . . . . . . . . . . Hacks Repelled . | . . . . . . . . . . . Allies | -11 -10 -9 -9 -9 -9 -7 -7 -6 -6 -5 -------- Run | Yrd Mat Mat Sto Gar Rec Fac Gar Fac DSF Fac Total Allies 18 | . . . . 8 5 . 5 . . . Largest Group 12 | . . . . 5 8 7 12 11 10 1 Highest-Rated Group 261 | . . . . 88 148 138 261 226 216 39 Highest-Rated Ally 39 | . . . . 34 34 34 39 39 39 39 Total Orders . | . . . . . . . . . . . Ally Attacks 104 | . . . . 26 8 6 . . 58 6 Total Damage 2548 | . . . . 1035 177 283 . . 1003 50 Kills 28 | . . . . 11 1 3 . . 13 . Allies Corrupted . | . . . . . . . . . . . Allies Melted . | . . . . . . . . . . . Intel | -11 -10 -9 -9 -9 -9 -7 -7 -6 -6 -5 ------- Run | Yrd Mat Mat Sto Gar Rec Fac Gar Fac DSF Fac Active Infowar (turns) . | . . . . . . . . . . . Robot Analysis Total . | . . . . . . . . . . . Derelict Logs Recovered . | . . . . . . . . . . . Drone Launches . | . . . . . . . . . . . Drone Recoveries . | . . . . . . . . . . . Exploration | -11 -10 -9 -9 -9 -9 -7 -7 -6 -6 -5 ------------- Run | Yrd Mat Mat Sto Gar Rec Fac Gar Fac DSF Fac Turns Passed 8463 | 48 250 455 21 3002 738 149 1344 3 288 2165 Spaces Moved 4450 | 45 230 248 14 1634 436 80 916 3 148 696 Core 7 | 1 . . . . . . . . . 6 Treads 164 | . . . . . . . . . . 164 Legs 46 | . . . . . . . . . . 46 Wheels 4127 | 44 230 248 14 1634 436 80 916 3 148 374 Hover 106 | . . . . . . . . . . 106 Flight . | . . . . . . . . . . . Fastest Speed 50 | 50 80 140 150 150 150 135 135 135 135 135 Average Speed 155 | 79 98 146 150 162 150 135 135 135 135 205 Slowest Speed 1650 | 80 140 150 150 225 150 135 135 135 135 1650 Overloaded Moves . | . . . . . . . . . . . Propulsion Burnouts . | . . . . . . . . . . . Robots Hopped . | . . . . . . . . . . . Potential Cave-ins 14 | . . . . . . . . . . 14 Cave-ins Triggered . | . . . . . . . . . . . Exploration Rate (%) 44 | 2 55 21 6 69 75 4 98 . 90 21 Regions Visited 10 Branch Regions 2 Pre-discovered Areas . | . . . . . . . . . . . Known Exits Taken 3 | . . . 1 . . 1 . 1 . . Unknown Exits Taken 4 | 1 1 1 . . 1 . . . . . Scrap Searched . | . . . . . . . . . . . Spaces Dug 16 | . . . . . . . . . . 16 Terrain Destroyed 435 | . 37 114 . 29 3 3 68 . . 181 Melee 16 | . . . . . . . . . . 16 Projectile 44 | . . 4 . 10 3 3 . . . 24 AOE 375 | . 37 110 . 19 . . 68 . . 141 Terrain Rammed 1 | . . . . . . . . . . 1 Walls Destroyed . | . . . . . . . . . . . Machines Disabled . | . . . . . . . . . . . Actions | -11 -10 -9 -9 -9 -9 -7 -7 -6 -6 -5 --------- Run | Yrd Mat Mat Sto Gar Rec Fac Gar Fac DSF Fac Total 5395 | 54 247 308 14 1875 505 103 1008 2 212 1067 Wait 147 | . . 9 . 8 3 8 33 . 11 75 Move 4438 | 44 229 247 13 1632 435 79 914 2 147 696 Hop . | . . . . . . . . . . . Pick Up 77 | 4 7 15 . 8 3 3 5 . 11 21 Fast Attach 34 | 6 1 . . 3 . 1 1 . 1 21 Attach 62 | . . 3 1 9 . 3 . . 3 43 Detach 8 | . . 2 . 2 . . . . . 4 Swap 35 | . 4 4 . 3 . 2 2 . 1 19 Drop 32 | . 3 11 . 3 . . 1 . 9 5 Fire 249 | . 3 17 . 65 6 7 10 . 13 128 Melee 51 | . . . . . . . . . . 51 Ram 6 | . . . . 5 . . . . . 1 Kick 3 | . . . . . . . . . . 3 Crush . | . . . . . . . . . . . Escape Stasis 79 | . . . . 63 . . . . 16 . Rewire 174 | . . . . 74 58 . 42 . . . Trap . | . . . . . . . . . . . Miscellaneous . | . . . . . . . . . . . Route ------- -11/Scrapyard -10/Materials (discovered 2 exits: [*Mat] / [*Min]) -9/Materials -9/Storage -9/Garrison (discovered 3 exits: [*Rec x3]) -9/Recycling -7/Factory -7/Garrison (discovered 3 exits: *Fac x3) -6/Factory -6/DSF -5/Factory (discovered 1 exit: [*Ext]) History --------- Turn | Location | Event 14 | -11/Scrapyard | Discovered new exit (range 16) 49 | -11/Scrapyard | Entered Materials 126 | -10/Materials | Discovered new exit (range 12) 184 | -10/Materials | Discovered new exit (range 14) 299 | -10/Materials | Entered another Materials area 299 | -9/Materials | Evolved 2 slots: Utility x1, Weapon x1 300 | -9/Materials | Discovered new exit (range 7) 754 | -9/Materials | Entered Storage 773 | -9/Storage | Identified exit to Garrison 775 | -9/Storage | Entered Garrison 902 | -9/Garrison | Build established: Bomber 952 | -9/Garrison | Triggered checkpoint 956 | -9/Garrison | Triggered checkpoint 968 | -9/Garrison | Triggered checkpoint 1045 | -9/Garrison | Destroyed 17 combat bots 1049 | -9/Garrison | Lost 5 parts (1p1n1u2w) 1095 | -9/Garrison | Triggered checkpoint 1116 | -9/Garrison | Garrison Relay disabled 1239 | -9/Garrison | Triggered checkpoint 1251 | -9/Garrison | Garrison Relay disabled 1348 | -9/Garrison | Discovered new exit (range 14) 1563 | -9/Garrison | Garrison Relay disabled 2015 | -9/Garrison | Lost 3 allies 2067 | -9/Garrison | Triggered checkpoint 2069 | -9/Garrison | Core integrity fell below 50% 2087 | -9/Garrison | Discovered new exit (range 8) 2183 | -9/Garrison | Garrison Relay disabled 2239 | -9/Garrison | Triggered checkpoint 2275 | -9/Garrison | Triggered checkpoint 2330 | -9/Garrison | Build established: Commander-Tank 2341 | -9/Garrison | Discovered new exit (range 11) 2381 | -9/Garrison | Installed Relay Interface Framework 2401 | -9/Garrison | Triggered checkpoint 2440 | -9/Garrison | Garrison Relay disabled 2710 | -9/Garrison | Build established: Tank 3777 | -9/Garrison | Entered Recycling 3777 | -9/Recycling | Accompanied by 3 allies 4136 | -9/Recycling | Build established: Commander-Tank 4479 | -9/Recycling | Discovered new exit (range 15) 4515 | -9/Recycling | Entered Factory 4515 | -7/Factory | Accompanied by 7 allies 4515 | -7/Factory | Evolved 4 slots: Propulsion x1, Utility x3 4596 | -7/Factory | Garrison activated, responded to threat 4649 | -7/Factory | Identified exit to Garrison 4664 | -7/Factory | Entered Garrison 4664 | -7/Garrison | Discovered recently destroyed garrison 4664 | -7/Garrison | Accompanied by 7 allies 4842 | -7/Garrison | Discovered new exit (range 10) 4908 | -7/Garrison | Garrison Relay disabled 5038 | -7/Garrison | Discovered new exit (range 11) 5074 | -7/Garrison | Garrison Relay disabled 5182 | -7/Garrison | Phase Generator disabled 5314 | -7/Garrison | Discovered new exit (range 5) 5360 | -7/Garrison | Expanded RIF knowledge: Alert ID Control 5396 | -7/Garrison | Rescued a captive Derelict 5402 | -7/Garrison | Rescued a captive Derelict 5561 | -7/Garrison | Garrison Relay disabled 5670 | -7/Garrison | Garrison Relay disabled 5861 | -7/Garrison | Discovered new exit (range 56) 5861 | -7/Garrison | Discovered new exit (range 23) 5861 | -7/Garrison | Discovered new exit (range 44) 6008 | -7/Garrison | Entered Factory 6008 | -6/Factory | Accompanied by 11 allies 6008 | -6/Factory | Evolved 2 slots: Utility x2 6011 | -6/Factory | Identified exit to DSF 6011 | -6/Factory | Entered DSF 6011 | -6/DSF | Accompanied by 11 allies 6023 | -6/DSF | Additional patrols routed to DSF 6086 | -6/DSF | Lost 5 allies 6169 | -6/DSF | Discovered new exit (range 15) 6203 | -6/DSF | Sterilization system engaged 6223 | -6/DSF | Ambient heat levels rising (+10) 6238 | -6/DSF | Ambient heat levels rising (+10) 6253 | -6/DSF | Ambient heat levels rising (+10) 6268 | -6/DSF | Ambient heat levels rising (+10) 6283 | -6/DSF | Ambient heat levels rising (+10) 6298 | -6/DSF | Ambient heat levels rising (+10) 6299 | -6/DSF | Entered Factory 6299 | -5/Factory | Accompanied by 1 ally 6299 | -5/Factory | Evolved 2 slots: Power x1, Utility x1 6396 | -5/Factory | Build established: Tank 6599 | -5/Factory | First assault squad dispatched 6799 | -5/Factory | Destroyed 7 combat bots 6984 | -5/Factory | Fabricated Arm. Medium Treads? 7119 | -5/Factory | Spotted B-75 Beast 7313 | -5/Factory | Lost 15 parts (3p3n6u3w) 7550 | -5/Factory | Discovered new exit (range 7) 7671 | -5/Factory | Lost 3 parts (2u1w) 7733 | -5/Factory | System corruption reached 10% 7797 | -5/Factory | Core integrity fell below 50% 7852 | -5/Factory | Lost 8 parts (3n3u2w) 8035 | -5/Factory | Lost 11 parts (2p3n2u4w) 8301 | -5/Factory | Lost 4 parts (2p1n1u) 8389 | -5/Factory | System corruption reached 30% 8456 | -5/Factory | Lost 11 parts (3n5u3w) 8461 | -5/Factory | Core integrity fell below 20% 8464 | -5/Factory | Destroyed by G-50 Soldier with Heavy Laser Last Messages --------------- 08425_ Hacking Suite destroyed. 08425_ System corrupted by crushing effect (+5). 08425_ System corrupted by crushing effect (+2). 08426_ VP&MGUHBQSG NLNLLW9 &83N:Y87MMC>YZJ0RT5 08426_ K-01 Serf collects debris. 08435_ Mic. Fission Core blown off. 08435_ Gauss Rifle blown off. 08435_ Lance blown off. 08436_ Slammed into Construction Platform. 08436_ Destabilizing: System corrupted (+2). 08436_ Destabilizing: Core damaged (-20). 08445_ G9QZ,T F#NW7UHC2>DXF%9F/E,HRI5JTPNTX 08455_ Kicked E-15 Imp. 08455_ E-15 Imp destroyed. 08457_ Kicked G-50 Soldier out of the way. 08458_ Flexi-carbon Leg severed. 08460_ Critical hit (Burn: +37). 08460_ Kicked G-67 Veteran. 08461_ Tesla Rifle destroyed. 08462_ Flexi-carbon Leg severed. Map ----- +----------------------------------------------------+ | ## #??? #?!??????????????????????????????????? | | #??# #????????????????????????????????????? | | #??# +????????????????????????????????????? | | #??# #????????????????????????????????????? | | ######??# #????????????????????????????????????? | | ???????## #????????????????????????????????????? | | ???????+ #????????????????????????????????????? | | ???????# #????????????????????????????????????? | | ???????# #???########?????????????????????????? | | ###????# #???# #?????????????????????????? | | T ###### #???# ! #?????????????????????????? | | ##### """#?????????????????????????? | | + Y"#?????????????????????????? | | # """#?????????????????????????? | | # ! #?????????#???????????????? | | ###########+###+####+###???????? +????]??????????? | | ??????# ! #??# #?????????? ????????????????? | | ??????# ] #??# #????????? ????????????????? | | ??????# #??# #?????????!?????????????????? | | ??????# """ """ #??# #???????? #?????????????????? | | ??????# """ """ #??# #???????? #?????????????????? | | ??????# """ """ #?##+#######? #?????????????????? | | ??????# #?# #? #?????????????????? | | ??????# = !#?# """"i# #?????????????????? | | ??????###########?# ""%"gg %%# """"????????????? | | ??????????????????# "*g@gg! + """"????????????? | | ??????????????????# ! """"l#g # """"????????????? | | ??????????????????# """"g#" #?????????????????? | | ??????????????????# """"g#? #?????????????????? | | ??????????????????# """"b#? #?????????????????? | | ??????????????????# gg #?? #?????????????????? | | ??????????????????###+######?? #?????????????????? | | ???????????????????? ??????????#?????????????????? | | ?????????????????????????????????????????????????? | | ?????????????????????????????????????????????????? | | ?????????????????????????????????????????????????? | | ?????????????????????????????????????????????????? | | ?????????????????????????????????????????????????? | | ?????????????????????????????????????????????????? | | ?????????????????????????????????????????????????? | | ?????????????????????????????????????????????????? | | ?????????????????????????????????????????????????? | | ?????????????????????????????????????????????????? | | ?????????????????????????????????????????????????? | | ?????????????????????????????????????????????????? | | ?????????????????????????????????????????????????? | | ?????????????????????????????????????????????????? | | ?????????????????????????????????????????????????? | | ?????????????????????????????????????????????????? | | ?????????????????????????????????????????????????? | +----------------------------------------------------+ Best States ------------- Heat Dissipation 85 Energy Generation 31 Energy Capacity 480 Matter Stores 300 Matter Capacity 500 Sight Range 16 Terrain Scan Density 10 Armor Coverage 900 Resistance: KI 25 Phase Shifting 5 Evasion (%) 45 Target Analysis 6 Recoil Reduction 3 Offensive Hacking 20 Relay Coupler Types 2 Relay Coupler Value 100 Authchip Count 1 Item Schematics ----------------- Arm. Medium Treads | -5/Factory | Scanalyzed Robot Schematics ------------------ None Fabricated ------------ Arm. Medium Treads | x2 | -5/Factory | Authchip Repaired ---------- Nothing Studied --------- None Alien Tech Used ----------------- None Achievements -------------- None Challenges ------------ None Game ------ Seed SuperchargedSlugMagmablaster Manual? 0 Play Time 01:33:25 Cumulative 52.4 hours Start 2025.12.11 @ 10:41:37 End 2025.12.27 @ 11:53:34 Sessions 9 Manual Loads 0 Difficulty Rogue Special Mode None Game No. 62 Rogue 62 Adventurer 0 Explorer 0 Win Type - Total 0 Types 0/0/0/0/0/0/0/0/0/0 Lore% 12 Gallery% 35 Achievement% 24 Wizard Run 0 Options --------- Layout 0 ASCII 0 Keyboard 1 Movement Arrows Keybinds 0 Fullscreen 1 Font 24/Smallcaps Map View 76x50 Zoom Use 0% Tactical HUD 1 Map Filters NONE Filters NONE Steam 1 RUN: 63232b31-cbc6-438b-8111-8758f89a4212